bitfinex-derivatives/quotes_ETHF0:USTF0_20250430
["timestamp","ask_amount","ask_price","bid_price","bid_amount"]
[1745979752422,1.5994,1804.0,1803.9,1.10843]
[1745979752624,1.5994,1804.0,1803.9,2.80503]
[1745979752815,2.70777,1804.0,1803.9,2.80503]
[1745979753216,6.53577,1804.0,1803.9,2.80503]
[1745979754322,5.4274,1804.0,1803.9,2.80503]
[1745979754823,3.828,1804.0,1803.9,6.01283]
[1745979755024,3.828,1804.0,1803.9,11.01283]
[1745979755226,5.55434822,1804.1,1804.0,1.10837]
[1745979755420,5.55434822,1804.1,1804.0,6.36377]
[1745979756425,5.55434822,1804.1,1804.0,11.36377]
[1745979756628,5.55434822,1804.1,1804.0,6.36377]
[1745979757227,5.55434822,1804.3,1804.2,1.10824]
[1745979758025,5.55434822,1804.3,1804.2,2.79104]
[1745979758331,5.55434822,1804.3,1804.2,7.79104]
[1745979758733,5.55434822,1804.3,1804.2,8.56424]
[1745979759027,7.36712954,1804.5,1804.4,1.10812]
[1745979759239,7.36712954,1804.5,1804.4,8.67412]
[1745979759440,7.36712954,1804.5,1804.4,54.47412]
[1745979759646,7.36712954,1804.5,1804.4,55.95562]
[1745979760345,7.36712954,1804.5,1804.4,59.78362]
[1745979761044,13.75674157,1804.8,1804.5,3.87821]
[1745979761248,10.20911127,1804.8,1804.7,4.31574]
[1745979761544,10.20911127,1804.8,1804.7,7.90074]
[1745979761745,10.20911127,1804.8,1804.7,8.56244]
[1745979762140,1.6378,1805.1,1805.0,1.10775]
[1745979763244,5.4658,1805.1,1805.0,1.10775]
[1745979766246,1.6378,1805.1,1805.0,4.69175]
[1745979766438,1.6378,1805.1,1805.0,6.39595]
[1745979768147,5.4658,1805.1,1805.0,6.39595]
[1745979769344,5.4658,1805.1,1805.0,4.69175]
[1745979770852,5.4658,1805.1,1804.9,4.9382]
[1745979770853,10.4658,1805.1,1804.9,4.31555]
[1745979771039,1.6754,1805.0,1804.9,1.10775]
[1745979772250,5.5034,1805.0,1804.9,1.10775]
[1745979772452,5.5034,1805.0,1804.9,4.31555]
[1745979772750,5.5034,1805.0,1804.9,1.10775]
[1745979774353,5.5034,1805.0,1804.9,4.31555]
[1745979774551,6.61115,1805.0,1804.9,1.10775]
[1745979775856,1.10787,1804.9,1804.8,1.10784]
[1745979776153,1.10787,1804.9,1804.7,6.7908]
[1745979776154,1.10787,1804.8,1804.7,7.89874]
[1745979776554,2.79877,1804.8,1804.7,7.89874]
[1745979777259,6.62677,1804.8,1804.7,7.89874]
[1745979777554,6.62677,1804.8,1804.7,4.31574]
[1745979777754,6.62677,1804.8,1804.7,1.10794]
[1745979778251,1.108,1804.6,1804.5,3.2078]
[1745979778444,1.10805,1804.6,1804.5,1.108]
[1745979778848,2.80115,1804.6,1804.5,1.108]
[1745979779153,6.62915,1804.6,1804.5,1.108]
[1745979781663,1.10812,1804.5,1804.4,1.10809]
[1745979781853,3.65822,1804.5,1804.4,1.10809]
[1745979782157,7.48622,1804.5,1804.4,1.10809]
[1745979782547,1.10824,1804.2,1804.1,3.2078]
[1745979782753,1.10837,1804.0,1803.9,4.69235]
[1745979782952,3.4131,1804.1,1804.0,1.10837]
[1745979783153,7.2411,1804.1,1804.0,1.10837]
[1745979783459,8.3494,1804.1,1804.0,1.10837]
[1745979783862,7.2411,1804.1,1804.0,1.10837]
[1745979784056,8.3494,1804.1,1804.0,1.10837]
[1745979785164,7.2411,1804.1,1804.0,1.10837]
[1745979785562,8.3494,1804.1,1804.0,1.10837]
[1745979788266,7.2411,1804.1,1804.0,1.10837]
[1745979788668,8.3494,1804.1,1804.0,1.10837]
[1745979788868,7.2411,1804.1,1804.0,1.10837]
[1745979789062,8.3494,1804.1,1804.0,1.10837]
[1745979789462,1.10837,1804.0,1803.9,4.69238]
[1745979789661,2.83417,1804.0,1803.9,4.69238]
[1745979790269,6.66217,1804.0,1803.9,4.69238]
[1745979791069,5.5538,1804.0,1803.9,4.69238]
[1745979791864,6.66217,1804.0,1803.9,6.30108]
[1745979792670,5.5538,1804.0,1803.9,6.30108]
[1745979792870,3.828,1804.0,1803.9,6.30108]
[1745979793168,1.6749,1804.1,1804.0,1.10837]
[1745979793369,1.6749,1804.1,1804.0,6.75957]
[1745979793566,1.7483,1804.2,1804.1,1.1083]
[1745979793771,1.7483,1804.2,1804.1,2.7469]
[1745979793970,1.10823,1804.3,1804.2,1.10824]
[1745979794170,6.65383,1804.3,1804.2,2.74684]
[1745979798272,5.5456,1804.3,1804.2,2.74684]
[1745979798571,3.828,1804.3,1804.2,2.74684]
[1745979800974,4.93618,1804.3,1804.2,2.74684]
[1745979801473,4.93618,1804.3,1804.2,5.95464]
[1745979801776,3.828,1804.3,1804.2,5.95464]
[1745979803271,3.828,1804.3,1804.2,9.54564]
[1745979804176,3.54006,1804.6,1804.5,1.10806]
[1745979805077,1.10812,1804.5,1804.4,1.10807]
[1745979805284,1.10812,1804.5,1804.3,0.8221]
[1745979805285,1.10818,1804.3,1804.2,6.31378]
[1745979805474,1.10818,1804.3,1804.2,4.69918]
[1745979805980,1.91928,1804.3,1804.2,4.69918]
[1745979806178,7.37378,1804.3,1804.2,4.69918]
[1745979807681,7.37378,1804.3,1804.2,4.69924]
[1745979807682,10.58158,1804.3,1804.2,4.69924]
[1745979807878,10.58158,1804.3,1804.2,3.591]
[1745979808378,7.37378,1804.3,1804.2,4.69924]
[1745979808579,7.37378,1804.3,1804.2,1.10824]
[1745979808778,1.1083,1804.2,1804.1,1.10826]
[1745979808980,2.8166,1804.2,1804.1,1.10826]
[1745979809182,6.6446,1804.2,1804.1,1.10826]
[1745979813487,1.1083,1804.1,1804.0,4.31612]
[1745979813680,3.699,1804.1,1804.0,4.31612]
[1745979814086,7.527,1804.1,1804.0,4.31612]
[1745979816994,3.828,1804.1,1804.0,4.31612]
[1745979817185,3.828,1804.1,1804.0,6.84182]
[1745979817795,4.9363,1804.1,1804.0,6.84182]
[1745979817995,3.828,1804.1,1804.0,6.84182]
[1745979818695,4.9363,1804.1,1804.0,6.04752]
[1745979819092,5.8016,1804.1,1804.0,6.04752]
[1745979819796,7.4722,1804.1,1804.0,6.04752]
[1745979820896,7.4722,1804.1,1804.0,4.31612]
[1745979827301,10.24297,1804.1,1803.9,3.591]
[1745979827493,3.67227,1804.0,1803.9,4.69943]
[1745979828200,7.50027,1804.0,1803.9,6.31643]
[1745979829500,7.50027,1804.0,1803.9,7.16563]
[1745979833302,7.50027,1804.0,1803.9,1.10843]
[1745979833503,1.10843,1803.9,1803.8,1.10844]
[1745979834306,4.93643,1803.9,1803.8,1.10844]
[1745979836001,1.10855,1803.8,1803.7,1.1085]
[1745979836201,1.10855,1803.8,1803.7,2.8087]
[1745979836606,6.61728,1803.9,1803.8,1.10849]
[1745979837007,3.828,1803.9,1803.8,1.10849]
[1745979837204,4.93643,1803.9,1803.8,1.10849]
[1745979838602,3.828,1803.9,1803.8,9.31629]
[1745979839204,1.10819,1804.3,1804.2,1.10824]
[1745979839507,2.80577,1804.4,1804.3,1.10818]
[1745979840204,6.63377,1804.4,1804.3,1.10818]
[1745979841911,1.10824,1804.2,1804.1,0.8367]
[1745979842110,1.10828,1804.2,1804.1,1.10825]
[1745979842610,4.93613,1804.4,1804.3,1.10818]
[1745979843804,6.66383,1804.4,1804.3,1.10818]
[1745979845908,3.828,1804.4,1804.3,1.10818]
[1745979846506,3.828,1804.4,1804.3,10.45738]
[1745979846706,2.71376,1804.4,1804.3,10.45738]
[1745979847011,2.71376,1804.4,1804.3,51.25738]
[1745979847211,0.8025,1804.8,1804.7,1.10794]
[1745979847611,0.8025,1804.8,1804.7,1.97734]
[1745979848206,4.6305,1804.8,1804.7,1.97734]
[1745979850017,4.6305,1804.8,1804.7,3.55424]
[1745979850513,5.73837,1804.8,1804.7,3.55424]
[1745979851015,5.73837,1804.8,1804.7,1.10794]
[1745979851218,6.56857,1804.8,1804.7,1.10794]
[1745979854920,1.10794,1804.7,1804.6,4.31575]
[1745979855111,2.80354,1804.7,1804.6,4.31575]
[1745979855719,1.108,1804.6,1804.5,1.10802]
[1745979856015,2.8036,1804.6,1804.5,1.10802]
[1745979856213,6.6316,1804.6,1804.5,1.10802]
[1745979856408,6.6316,1804.6,1804.4,6.75937]
[1745979856409,1.10806,1804.5,1804.4,6.75937]
[1745979856608,4.50176,1804.5,1804.4,6.75937]
[1745979857218,8.32976,1804.5,1804.4,6.75937]
[1745979857921,7.2217,1804.5,1804.4,6.75937]
[1745979858520,8.32976,1804.5,1804.4,4.31587]
[1745979862924,1.10812,1804.4,1804.3,1.10813]
[1745979863124,2.80142,1804.4,1804.3,1.10813]
[1745979863517,1.6933,1804.4,1804.3,1.10813]
[1745979863717,1.6933,1804.4,1804.3,2.74843]
[1745979864126,5.5213,1804.4,1804.3,2.74843]
[1745979864331,3.828,1804.4,1804.3,2.74843]
[1745979864531,3.828,1804.4,1804.3,3.58803]
[1745979865533,4.93612,1804.4,1804.3,3.58803]
[1745979865827,6.56652,1804.4,1804.3,1.10813]
[1745979867226,1.10818,1804.3,1804.2,6.7828]
[1745979867527,1.10818,1804.3,1803.9,2.77092]
[1745979867528,1.1083,1804.1,1804.0,4.31617]
[1745979867920,1.1083,1804.1,1804.0,5.90887]
[1745979868128,4.9363,1804.1,1804.0,3.2078]
[1745979868424,1.10837,1804.0,1803.9,3.576]
[1745979868625,2.74367,1804.0,1803.9,4.68443]
[1745979869018,2.74367,1804.0,1803.9,6.27713]
[1745979869225,6.57167,1804.0,1803.9,6.27713]
[1745979869534,6.57167,1804.0,1803.9,4.68443]
[1745979871835,6.57167,1804.0,1803.9,3.576]
[1745979872835,6.57167,1804.0,1803.8,1.10844]
[1745979872836,1.10843,1803.9,1803.8,1.10844]
[1745979873037,4.43753,1803.9,1803.8,1.10844]
[1745979873224,8.26553,1803.9,1803.8,1.10844]
[1745979875044,8.26553,1803.9,1803.8,2.75784]
[1745979875444,7.1571,1803.9,1803.6,0.7732]
[1745979875745,1.10855,1803.7,1803.6,0.7732]
[1745979876044,1.10855,1803.7,1803.6,1.88181]
[1745979877251,4.93655,1803.7,1803.6,1.88181]
[1745979879139,8.14435,1803.7,1803.6,0.7732]
[1745979879349,4.93655,1803.7,1803.6,0.7732]
[1745979880049,4.93655,1803.7,1803.6,2.4441]
[1745979880851,4.93655,1803.7,1803.6,3.2951]
[1745979881952,4.93655,1803.7,1803.6,2.4441]
[1745979889257,6.53175,1803.7,1803.6,2.4441]
[1745979895060,6.53175,1803.7,1803.6,3.55271]
[1745979896663,6.53175,1803.7,1803.6,2.4441]
[1745979897269,4.93655,1803.7,1803.6,2.4441]
[1745979898170,4.93655,1803.7,1803.6,3.55271]
[1745979899974,4.93655,1803.7,1803.6,2.4441]
[1745979900976,6.59885,1803.7,1803.6,2.4441]
[1745979901175,6.59885,1803.7,1803.1,5.08988]
[1745979901176,1.10886,1803.2,1803.1,5.08988]
[1745979901376,1.10886,1803.2,1803.1,7.58818]
[1745979901772,1.6623,1803.4,1803.1,14.25155]
[1745979901973,7.38932,1803.7,1803.6,1.10861]
[1745979902177,3.56132,1803.7,1803.6,1.10861]
[1745979902576,0.8701,1804.0,1803.7,1.10855]
[1745979902781,1.6623,1804.3,1804.2,1.10824]
[1745979903075,3.2078,1804.6,1804.5,1.10806]
[1745979903276,3.2078,1804.6,1804.3,3.3286]
[1745979903472,1.10812,1804.4,1804.3,0.8499]
[1745979903673,4.40039,1804.5,1804.1,4.68526]
[1745979903874,2.73838,1804.3,1804.2,1.5832]
[1745979904283,1.10824,1804.2,1804.1,5.49066]
[1745979904575,2.73844,1804.2,1804.1,7.07386]
[1745979904775,2.73844,1804.2,1804.1,5.9656]
[1745979905077,1.10843,1804.0,1803.9,1.10843]
[1745979905282,1.10843,1803.9,1803.8,5.9656]
[1745979905484,1.94743,1803.9,1803.8,5.9656]
[1745979906282,6.58223,1803.9,1803.8,3.577]
[1745979906475,8.26413,1803.9,1803.8,3.577]
[1745979907182,8.26413,1803.9,1803.8,4.68549]
[1745979908584,8.26413,1803.9,1803.8,3.577]
[1745979909482,8.26413,1803.9,1803.8,4.68549]
[1745979909682,8.26413,1803.9,1803.8,6.38759]
[1745979910286,8.26413,1803.9,1803.8,5.2791]
[1745979910483,8.26413,1803.9,1803.8,3.577]
[1745979910985,1.10861,1803.6,1803.5,5.50573]
[1745979911177,4.93661,1803.6,1803.5,5.50573]
[1745979911383,4.93661,1803.6,1803.5,7.20783]
[1745979911582,4.93661,1803.6,1803.5,7.20787]
[1745979911882,6.66071,1803.6,1803.5,7.20787]
[1745979912786,6.66071,1803.6,1803.5,3.575]
[1745979913084,6.66071,1803.6,1803.5,4.68367]
[1745979915387,6.66071,1803.6,1803.5,3.575]
[1745979915886,1.10873,1803.4,1803.3,1.10878]
[1745979916280,4.93673,1803.4,1803.3,1.10878]
[1745979917790,1.1088,1803.3,1803.2,4.68382]
[1745979917987,4.4533,1803.3,1803.2,4.68382]
[1745979918191,8.2813,1803.3,1803.2,4.68382]
[1745979918488,8.2813,1803.3,1803.0,0.7732]
[1745979918489,1.10892,1803.1,1803.0,0.7732]
[1745979919086,1.10898,1803.0,1802.9,8.5266661]
[1745979919286,4.32178,1803.0,1802.9,7.4176561]
[1745979920290,11.35758,1803.0,1802.9,7.4176561]
[1745979922095,8.14978,1803.0,1802.9,8.5266961]
[1745979922288,13.14978,1803.0,1802.9,7.4176561]
[1745979922488,8.14978,1803.0,1802.9,7.4176561]
[1745979922894,11.35758,1803.0,1802.9,7.4176561]
[1745979923891,16.35758,1803.0,1802.9,7.4176561]
[1745979924198,11.35758,1803.0,1802.9,7.4176561]
[1745979925393,8.14978,1803.0,1802.9,7.4176561]
[1745979925699,11.35758,1803.0,1802.9,7.4176561]
[1745979926902,11.35758,1803.0,1802.7,1.10915]
[1745979926903,1.1091,1802.8,1802.7,1.10915]
[1745979927199,4.9371,1802.8,1802.7,2.82155]
[1745979928497,4.9371,1802.8,1802.7,1.7124]
[1745979928702,1.10916,1802.7,1802.6,1.10918]
[1745979928902,2.471,1802.7,1802.6,2.83598]
[1745979929105,7.40816,1802.7,1802.6,2.83598]
[1745979931305,7.40816,1802.7,1802.6,1.7268]
[1745979931510,1.10923,1802.6,1802.5,4.31704]
[1745979931708,3.56263,1802.6,1802.5,4.31704]
[1745979932214,7.39063,1802.6,1802.5,4.31704]
[1745979934313,7.39063,1802.6,1802.5,5.89934]
[1745979935809,3.828,1802.6,1802.5,5.89934]
[1745979936714,4.93723,1802.6,1802.5,5.89934]
[1745979937714,6.64933,1802.6,1802.5,5.89934]
[1745979939139,6.64933,1802.6,1802.5,4.31704]
[1745979940320,6.64933,1802.6,1802.5,5.94844]
[1745979943321,3.828,1802.6,1802.5,5.94844]
[1745979943920,4.93723,1802.6,1802.5,5.94844]
[1745979944112,3.828,1802.6,1802.5,5.94844]
[1745979944608,14.80892,1802.6,1802.0,0.7732]
[1745979944813,1.10947,1802.2,1802.1,0.8555]
[1745979945322,4.93747,1802.2,1802.1,0.8555]
[1745979945615,8.14527,1802.2,1802.1,0.8555]
[1745979945817,1.10953,1802.1,1802.0,1.6722]
[1745979946019,1.1096,1802.0,1801.9,0.8555]
[1745979946218,1.10972,1801.8,1801.7,0.8471]
[1745979946818,2.80292,1801.8,1801.7,0.8471]
[1745979947018,6.01072,1801.8,1801.7,2.523]
[1745979947214,9.83872,1801.8,1801.7,2.523]
[1745979949324,1.10978,1801.7,1801.6,7.4176561]
[1745979949524,2.82178,1801.7,1801.6,9.0991561]
[1745979950129,6.64978,1801.7,1801.6,7.4176561]
[1745979950514,1.10984,1801.6,1801.5,2.4894]
[1745979950720,4.31764,1801.6,1801.5,2.4894]
[1745979950919,4.9198,1801.6,1801.3,4.68698]
[1745979951120,1.712,1801.5,1801.3,4.68698]
[1745979951320,2.82195,1801.5,1801.4,2.4894]
[1745979952228,6.64995,1801.5,1801.4,2.4894]
[1745979952424,6.64995,1801.5,1801.4,3.59937]
[1745979952627,5.54,1801.5,1801.4,3.59937]
[1745979952819,3.828,1801.5,1801.4,3.59937]
[1745979957032,4.9379,1801.5,1801.4,3.59937]
[1745979958329,6.5326,1801.5,1801.4,3.59937]
[1745979962231,1.11003,1801.4,1801.3,1.10999]
[1745979962424,1.11009,1801.3,1801.2,1.11004]
[1745979962730,1.11009,1801.2,1801.1,6.38639]
[1745979962925,1.11021,1801.1,1801.0,1.11016]
[1745979963117,1.11021,1801.1,1800.9,4.68922]
[1745979963118,1.11021,1801.0,1800.9,4.68922]
[1745979963321,2.84761,1801.0,1800.9,6.38652]
[1745979964319,6.67561,1801.0,1800.9,4.68922]
[1745979964931,5.5654,1801.0,1800.9,4.68922]
[1745979965232,6.67561,1801.0,1800.9,4.68922]
[1745979967336,6.67561,1801.0,1800.9,1.11022]
[1745979967537,5.5654,1801.0,1800.9,1.11022]
[1745979967728,3.828,1801.0,1800.9,2.84402]
[1745979968235,3.2078,1801.1,1801.0,1.11021]
[1745979968431,3.2078,1801.1,1801.0,2.84401]
[1745979968633,4.31795,1801.1,1801.0,2.84401]
[1745979968835,5.95755,1801.1,1801.0,1.11021]
[1745979969230,9.78555,1801.1,1801.0,1.11021]
[1745979970734,8.6754,1801.1,1800.8,0.8179]
[1745979970931,3.64017,1801.0,1800.9,1.11024]
[1745979971136,14.13358,1801.0,1800.5,0.7732]
[1745979971331,1.11045,1800.7,1800.6,1.11041]
[1745979971836,2.7776,1800.8,1800.7,1.1104]
[1745979972227,6.6056,1800.8,1800.7,1.1104]
[1745979973841,6.60095798,1800.8,1800.7,1.1104]
[1745979975853,1.11045,1800.7,1800.6,1.1104]
[1745979976142,5.76505,1800.7,1800.6,1.1104]
[1745979977644,4.6546,1800.7,1800.6,2.7982]
[1745979979345,5.765,1800.7,1800.6,2.7982]
[1745979979544,7.4474,1800.7,1800.6,2.7982]
[1745979979746,6.337,1800.7,1800.6,2.7982]
[1745979979942,0.6202,1800.7,1800.6,15.3582]
[1745979980338,3.65472,1801.2,1801.1,1.11015]
[1745979980940,1.11015,1801.1,1801.0,3.64487]
[1745979981145,6.62055,1801.1,1801.0,3.64487]
[1745979984048,5.5104,1801.1,1801.0,3.64487]
[1745979984447,6.62055,1801.1,1801.0,3.64487]
[1745979985646,6.62055,1801.1,1801.0,1.11017]
[1745979986449,7.45575,1801.1,1801.0,1.11017]
[1745979987149,1.1104,1800.8,1800.7,1.11036]
[1745979987649,4.5087,1800.8,1800.7,1.11036]
[1745979988152,8.3367,1800.8,1800.7,1.11036]
[1745979989652,1.1104,1800.7,1800.6,4.68942]
[1745979989847,2.81,1800.7,1800.6,4.68942]
[1745979990250,6.638,1800.7,1800.6,4.68942]
[1745979991650,9.8458,1800.7,1800.6,4.68942]
[1745979993651,8.7354,1800.7,1800.6,1.11042]
[1745979994754,9.8458,1800.7,1800.6,1.11042]
[1745980014163,1.11046,1800.6,1800.5,2.76607]
[1745980014364,2.77336,1800.6,1800.5,2.76607]
[1745980015058,6.60136,1800.6,1800.5,2.76607]
[1745980015363,5.4909,1800.6,1800.5,2.76607]
[1745980015755,6.60136,1800.6,1800.5,2.76607]
[1745980016264,5.4909,1800.6,1800.5,2.76607]
[1745980016862,6.60136,1800.6,1800.5,2.76607]
[1745980018865,3.828,1800.6,1800.5,2.76607]
[1745980019060,3.2078,1800.7,1800.6,1.11046]
[1745980019269,3.2078,1800.7,1800.6,2.83886]
[1745980019766,4.3182,1800.7,1800.6,2.83886]
[1745980019959,3.2078,1800.7,1800.6,2.83886]
[1745980020159,3.60468,1800.8,1800.7,1.1104]
[1745980020458,3.60468,1800.8,1800.7,4.5326]
[1745980021165,7.43268,1800.8,1800.7,4.5326]
[1745980021556,4.93838,1800.8,1800.7,4.5326]
[1745980021759,4.93838,1800.8,1800.7,3.6622]
[1745980021959,6.60858,1800.8,1800.7,3.6622]
[1745980024165,3.828,1800.8,1800.7,15.449]
[1745980024563,3.828,1800.8,1800.7,16.3178]
[1745980025269,1.11021,1801.0,1800.9,1.11027]
[1745980025962,2.68811,1801.0,1800.9,1.11027]
[1745980026163,5.4059,1801.0,1800.9,1.11027]
[1745980027267,1.5779,1801.0,1800.9,1.11027]
[1745980027774,2.68811,1801.0,1800.9,1.11027]
[1745980028273,7.37531,1801.0,1800.9,1.11027]
[1745980029477,6.2651,1801.0,1800.9,1.11027]
[1745980030975,7.37531,1801.0,1800.9,1.11027]
[1745980031772,1.11033,1800.9,1800.8,1.11029]
[1745980031974,2.82563,1800.9,1800.8,1.11029]
[1745980032275,6.65363,1800.9,1800.8,1.11029]
[1745980032875,5.5433,1800.9,1800.8,1.11029]
[1745980033674,5.5433,1800.9,1800.8,2.73639]
[1745980033876,6.65357,1800.9,1800.8,2.73639]
[1745980034679,6.65357,1800.9,1800.8,1.11029]
[1745980038082,1.11033,1800.8,1800.7,1.11036]
[1745980038383,6.88453,1800.8,1800.7,1.11036]
[1745980039178,10.71253,1800.8,1800.7,1.11036]
[1745980039380,7.50473,1800.8,1800.7,1.11036]
[1745980040181,10.71253,1800.8,1800.7,1.11036]
[1745980040681,1.11045,1800.7,1800.6,1.11041]
[1745980040981,3.55265,1800.7,1800.6,1.11041]
[1745980041181,7.38065,1800.7,1800.6,1.11041]
[1745980042377,6.2702,1800.7,1800.6,1.11041]
[1745980042578,6.2702,1800.7,1800.6,2.75261]
[1745980043675,7.3806,1800.7,1800.6,2.75261]
[1745980043881,7.3806,1800.7,1800.6,1.11041]
[1745980044777,6.2702,1800.7,1800.4,12.9841561]
[1745980044982,6.2702,1800.7,1800.4,9.3014261]
[1745980044983,1.11052,1800.5,1800.4,9.3014261]
[1745980045481,3.63522,1800.5,1800.4,9.3014261]
[1745980045682,2.5247,1800.5,1800.4,9.3014261]
[1745980046082,2.5247,1800.5,1800.4,10.8869261]
[1745980046383,6.3527,1800.5,1800.4,10.8869261]
[1745980048181,7.46322,1800.5,1800.4,7.4176561]
[1745980048685,3.828,1800.5,1800.4,8.5282361]
[1745980048877,3.828,1800.5,1800.4,14.1376361]
[1745980049078,3.828,1800.5,1800.4,19.1376361]
[1745980049280,3.2078,1800.8,1800.7,1.1104]
[1745980049585,4.31813,1800.8,1800.7,1.1104]
[1745980049887,3.2078,1800.8,1800.7,1.1104]
[1745980050078,8.14613,1800.8,1800.7,1.1104]
[1745980050280,7.0358,1800.8,1800.7,2.7545]
[1745980050691,7.0358,1800.8,1800.7,3.5632]
[1745980052193,3.2078,1800.8,1800.7,3.5632]
[1745980054701,2.4414,1800.9,1800.8,1.11033]
[1745980054995,2.4414,1800.9,1800.8,2.85593]
[1745980055188,3.828,1800.9,1800.8,2.85593]
[1745980056095,2.77651,1801.0,1800.9,1.11027]
[1745980056297,1.11027,1800.9,1800.8,2.85588]
[1745980056497,2.71807,1800.9,1800.8,1.11028]
[1745980057094,6.54607,1800.9,1800.8,1.11028]
[1745980057995,5.4358,1800.9,1800.8,1.11028]
[1745980058201,3.828,1800.9,1800.8,2.84118]
[1745980059203,6.55282,1801.0,1800.9,1.11027]
[1745980063600,6.55282,1801.0,1800.6,17.5875561]
[1745980063601,1.11033,1800.9,1800.8,1.11028]
[1745980063797,1.1104,1800.7,1800.6,11.7678561]
[1745980063993,1.1104,1800.7,1800.6,12.8783161]
[1745980064204,8.1462,1800.7,1800.6,12.8783161]
[1745980064598,9.8199,1800.7,1800.6,12.8783161]
[1745980064892,9.8199,1800.7,1800.6,9.3013161]
[1745980065407,9.8199,1800.7,1800.6,8.1908561]
[1745980065706,9.8199,1800.7,1800.6,9.3013161]
[1745980066410,9.8199,1800.7,1800.6,8.5281161]
[1745980067706,8.7095,1800.7,1800.6,8.5281161]
[1745980068005,9.8199,1800.7,1800.6,8.5281161]
[1745980068407,8.7095,1800.7,1800.6,8.5281161]
[1745980068706,9.8199,1800.7,1800.6,1.11046]
[1745980068904,9.8199,1800.7,1800.6,3.54336]
[1745980069805,9.8199,1800.7,1800.6,1.11046]
[1745980075707,13.7095,1800.7,1800.5,1.7098]
[1745980076009,1.11064,1800.3,1800.2,7.4176561]
[1745980076204,4.31844,1800.3,1800.2,7.4176561]
[1745980076800,6.01924,1800.3,1800.2,7.4176561]
[1745980077196,9.84724,1800.3,1800.2,7.4176561]
[1745980078707,9.84724,1800.3,1800.0,2.82061]
[1745980078708,1.11077,1800.1,1800.0,2.82061]
[1745980078908,4.31857,1800.1,1800.0,2.82061]
[1745980079105,1.11083,1800.0,1799.9,1.92526]
[1745980079304,1.11083,1800.0,1799.9,0.8144]
[1745980079305,2.82153,1800.0,1799.9,0.8144]
[1745980079508,1.11089,1799.9,1799.8,10.1093061]
[1745980079704,2.82159,1799.9,1799.8,10.1093061]
[1745980079903,2.82159,1799.9,1799.8,7.4176561]
[1745980080105,6.02939,1799.9,1799.8,7.4176561]
[1745980080310,9.85739,1799.9,1799.8,7.4176561]
[1745980080812,1.11095,1799.8,1799.7,7.11399393]
[1745980081010,2.83325,1799.8,1799.7,7.11399393]
[1745980081314,6.66125,1799.8,1799.7,7.11399393]
[1745980081809,6.66125,1799.8,1799.4,20.54511379]
[1745980082020,1.11114,1799.5,1799.4,1.97387]
[1745980082409,2.83344,1799.5,1799.4,1.97387]
[1745980083113,6.66144,1799.5,1799.4,1.97387]
[1745980083407,5.5503,1799.5,1799.4,1.97387]
[1745980084216,6.66144,1799.5,1799.4,1.97387]
[1745980085305,6.66144,1799.5,1799.4,0.8627]
[1745980086113,6.66144,1799.5,1799.4,1.1112]
[1745980086317,5.5503,1799.5,1799.4,1.1112]
[1745980086516,3.828,1799.5,1799.4,1.1112]
[1745980087218,3.2078,1799.6,1799.5,1.11114]
[1745980087611,6.05119,1799.8,1799.7,1.11101]
[1745980087816,0.8442,1799.9,1799.5,1.11114]
[1745980087817,1.11094,1799.9,1799.8,1.11092]
[1745980088019,1.111,1799.8,1799.7,1.11097]
[1745980088317,1.111,1799.8,1799.7,2.78287]
[1745980089119,4.939,1799.8,1799.7,2.78287]
[1745980090723,4.939,1799.8,1799.7,1.6719]
[1745980090919,1.11101,1799.7,1799.6,2.74442]
[1745980091218,6.57071,1799.7,1799.6,2.74442]
[1745980092214,3.2078,1799.8,1799.7,1.11101]
[1745980092514,3.828,1799.9,1799.8,1.11095]
[1745980093223,6.04617,1800.0,1799.9,1.11089]
[1745980093422,3.2078,1800.0,1799.9,1.11089]
[1745980094115,7.0358,1800.0,1799.9,1.98239]
[1745980094316,3.828,1800.0,1799.9,1.98239]
[1745980097218,1.7275,1800.2,1799.9,0.8715]
[1745980097520,2.83824,1800.2,1800.1,1.11077]
[1745980097824,5.13139,1800.3,1800.2,1.1107]
[1745980098123,8.95939,1800.3,1800.2,1.1107]
[1745980098320,10.65239,1800.3,1800.2,1.1107]
[1745980099118,1.11077,1800.1,1800.0,0.8725]
[1745980099320,1.11089,1799.9,1799.8,4.34761]
[1745980099621,1.11089,1799.9,1799.8,3.57441]
[1745980100624,2.80389,1799.9,1799.8,2.4635]
[1745980101229,6.01169,1799.9,1799.8,3.57445]
[1745980101525,9.83969,1799.9,1799.8,3.57445]
[1745980101927,9.83969,1799.9,1799.8,2.4635]
[1745980102121,9.83969,1799.9,1799.4,5.98577]
[1745980102122,1.11107,1799.7,1799.6,1.11102]
[1745980103128,4.93907,1799.7,1799.6,1.11102]
[1745980103425,5.72757,1799.7,1799.6,1.11102]
[1745980104629,1.11114,1799.5,1799.4,5.278]
[1745980104829,1.11114,1799.5,1799.4,5.5163]
[1745980105230,4.93914,1799.5,1799.4,5.5163]
[1745980105425,6.60474,1799.5,1799.4,5.5163]
[1745980113837,3.828,1799.5,1799.4,5.5163]
[1745980114227,5.10732,1799.7,1799.6,1.11108]
[1745980114930,5.10732,1799.7,1799.6,2.74928]
[1745980115133,8.93532,1799.7,1799.6,2.74928]
[1745980118638,7.0358,1799.7,1799.6,2.74928]
[1745980119131,8.14681,1799.7,1799.6,2.74928]